bitfinex-derivatives/quotes_SOLF0:USTF0_20250719
["timestamp","ask_amount","ask_price","bid_price","bid_amount"]
[1752964811630,3.11,175.96,175.95,3.04]
[1752964811836,3.11,175.95,175.94,106.54]
[1752964812129,3.11,175.95,175.94,112.2206]
[1752964812130,1.22779031,175.95,175.94,112.2206]
[1752964812330,4.33779031,175.95,175.94,112.2206]
[1752964813431,3.11,175.94,175.91,3.04]
[1752964813729,4.33779031,175.92,175.91,106.48]
[1752964814838,4.33779031,175.92,175.91,112.1615]
[1752964815433,4.33779031,175.92,175.91,106.48]
[1752964815735,3.11,175.91,175.89,106.48]
[1752964815939,4.33779031,175.9,175.89,103.44]
[1752964816237,4.33779031,175.9,175.84,3.04]
[1752964816238,3.11,175.89,175.84,3.04]
[1752964816433,3.11,175.86,175.85,103.44]
[1752964816733,3.11,175.86,175.85,106.48]
[1752964816942,3.11,175.86,175.85,112.1634]
[1752964820341,1.92058286,175.88,175.85,112.1634]
[1752964820542,3.31,175.87,175.86,3.06]
[1752964821640,1.92058286,175.91,175.87,3.06]
[1752964821831,3.31,175.88,175.87,3.06]
[1752964823442,3.31,175.88,175.87,8.7429]
[1752964823740,1.92058286,175.91,175.87,8.7429]
[1752964823741,3.31,175.89,175.87,5.6829]
[1752964823935,3.31,175.89,175.88,106.52]
[1752964826541,3.31,175.89,175.88,103.46]
[1752964826752,10.91278286,175.89,175.88,103.46]
[1752964828242,3.31,175.88,175.86,106.52]
[1752964828747,1.92058286,175.87,175.86,103.46]
[1752964828950,5.23058286,175.87,175.86,103.46]
[1752964830048,5.23058286,175.87,175.86,106.52]
[1752964831648,10.91348286,175.87,175.86,106.52]
[1752964835450,3.31,175.87,175.86,106.52]
[1752964835650,8.9926,175.88,175.87,3.06]
[1752964837854,3.31,175.88,175.87,3.06]
[1752964838058,3.31,175.89,175.87,3.06]
[1752964838252,3.31,175.9,175.89,3.06]
[1752964842164,5.6818,175.91,175.89,3.06]
[1752964842363,8.9918,175.91,175.89,3.06]
[1752964842564,3.31,175.9,175.89,3.06]
[1752964843470,3.31,175.92,175.89,3.06]
[1752964843764,3.31,175.94,175.9,1.92058286]
[1752964843955,8.9897,175.97,175.94,5.6806]
[1752964844160,8.9897,175.97,175.95,3.06]
[1752964844161,5.6797,175.97,175.95,3.06]
[1752964844463,3.31,175.96,175.95,3.06]
[1752964847769,5.6794,175.98,175.95,3.06]
[1752964847968,3.31,175.97,175.95,3.06]
[1752964848363,3.31,175.97,175.96,3.06]
[1752964854070,8.9897,175.97,175.96,3.06]
[1752964855070,3.15,175.96,175.95,3.34]
[1752964856374,3.15,175.96,175.95,9.0203]
[1752964861976,3.15,175.96,175.95,3.34]
[1752964865479,3.15,175.96,175.95,9.0203]
[1752964868084,3.15,175.99,175.98,3.34]
[1752964872985,3.15,175.99,175.98,9.0193]
[1752964873482,0.98900162,176.06,175.98,3.34]
[1752964873483,1.91785714,176.03,175.98,3.34]
[1752964873684,1.91785714,176.05,175.98,3.34]
[1752964874086,3.15,176.02,175.99,5.6788]
[1752964874290,3.15,176.02,176.0,103.36]
[1752964874484,3.15,176.02,176.01,3.34]
[1752964875385,3.15,176.04,176.01,3.34]
[1752964875891,3.15,176.05,176.03,5.6775]
[1752964876191,3.15,176.05,176.04,3.34]
[1752964876389,3.15,176.05,176.04,9.0174]
[1752964877286,3.15,176.06,176.05,3.34]
[1752964878790,3.15,176.06,176.05,9.0171]
[1752964879195,3.15,176.07,176.06,3.34]
[1752964879588,3.15,176.07,176.06,9.0168]
[1752964881690,3.15,176.07,176.06,3.34]
[1752964886304,3.26,176.06,176.03,3.16]
[1752964886500,3.26,176.06,176.04,106.46]
[1752964887403,3.26,176.06,176.04,112.1372]
[1752964887700,3.26,176.06,176.05,3.16]
[1752964890499,3.26,176.06,176.03,106.44]
[1752964890706,3.26,176.06,176.03,3.16]
[1752964890906,8.937,176.06,176.03,8.8375]
[1752964891205,3.26,176.06,176.04,3.16]
[1752964892811,3.26,176.08,176.04,3.16]
[1752964893605,3.26,176.1,176.07,3.16]
[1752964894198,3.26,176.1,176.08,5.6759]
[1752964894406,3.26,176.1,176.09,3.16]
[1752964894807,3.26,176.1,176.09,8.8358]
[1752964896101,3.26,176.1,176.08,3.16]
[1752964897201,3.26,176.1,176.08,8.8361]
[1752964898714,3.26,176.1,176.09,8.8358]
[1752964900019,5.17785714,176.12,176.09,8.8358]
[1752964900207,3.26,176.11,176.1,3.16]
[1752964900416,3.26,176.11,176.1,8.8355]
[1752964901413,3.26,176.13,176.12,8.8348]
[1752964902111,5.6736,176.16,176.12,8.8348]
[1752964902318,5.6736,176.16,176.13,3.16]
[1752964902512,3.26,176.14,176.13,8.8345]
[1752964905412,5.6735,176.16,176.13,5.6745]
[1752964905618,3.26,176.16,176.14,3.16]
[1752964905917,3.26,176.19,176.14,3.16]
[1752964906721,3.26,176.18,176.17,3.16]
[1752964908120,8.9329,176.18,176.17,3.16]
[1752964910823,3.04,176.19,176.17,3.16]
[1752964911124,3.04,176.19,176.17,8.8329]
[1752964911320,3.04,176.19,176.17,3.16]
[1752964912624,3.04,176.19,176.18,8.7329]
[1752964913027,3.04,176.19,176.18,3.06]
[1752964914624,4.95785714,176.24,176.18,3.06]
[1752964914826,3.04,176.23,176.18,3.06]
[1752964915128,3.04,176.2,176.19,3.06]
[1752964915531,3.04,176.21,176.19,8.7323]
[1752964915733,3.04,176.22,176.2,3.06]
[1752964916033,3.04,176.21,176.2,3.06]
[1752964916237,3.04,176.21,176.2,8.7322]
[1752964916434,3.04,176.23,176.21,3.06]
[1752964916937,6.36162789,176.29,176.22,3.06]
[1752964916938,1.91785714,176.27,176.22,3.06]
[1752964917128,3.04,176.23,176.22,3.06]
[1752964917628,3.04,176.23,176.2,3.06]
[1752964918333,3.04,176.23,176.21,3.06]
[1752964918528,1.91785714,176.23,176.09,381.52]
[1752964918836,3.04,176.22,176.15,3.06]
[1752964919130,3.04,176.2,176.18,3.06]
[1752964919331,3.04,176.21,176.18,3.06]
[1752964919829,3.04,176.23,176.2,5.672]
[1752964920032,3.04,176.23,176.21,3.06]
[1752964920831,3.04,176.23,176.22,8.7316]
[1752964921434,5.6704,176.26,176.23,3.06]
[1752964921636,3.04,176.24,176.23,3.06]
[1752964923529,119.66832237,176.31,176.23,5.6712]
[1752964923838,4.33041795,176.3,176.24,3.06]
[1752964924039,3.04,176.26,176.24,3.06]
[1752964924335,3.04,176.25,176.24,3.06]
[1752964924937,3.04,176.25,176.23,3.06]
[1752964925331,3.04,176.23,176.21,3.06]
[1752964925737,3.04,176.23,176.05,23.36855815]
[1752964925738,5.6718,176.22,176.19,3.06]
[1752964925932,3.04,176.21,176.19,3.06]
[1752964926133,1.91785714,176.27,176.19,3.06]
[1752964926338,3.04,176.23,176.19,3.06]
[1752964926734,8.7114,176.23,176.2,5.672]
[1752964926935,5.6714,176.23,176.21,3.06]
[1752964927641,8.7116,176.22,176.21,3.06]
[1752964928141,8.7119,176.21,176.2,3.06]
[1752964928341,3.04,176.21,176.2,3.06]
[1752964928533,3.04,176.23,176.2,3.06]
[1752964928735,3.04,176.22,176.2,3.06]
[1752964929335,3.04,176.22,176.2,5.6721]
[1752964929641,3.04,176.22,176.21,3.06]
[1752964930640,3.04,176.22,176.18,3.06]
[1752964931036,3.04,176.2,176.18,8.7326]
[1752964931941,3.04,176.2,176.18,5.6726]
[1752964932240,3.04,176.2,176.19,3.06]
[1752964932943,8.7122,176.2,176.19,3.06]
[1752964933832,5.6722,176.2,176.17,5.6731]
[1752964934031,3.04,176.19,176.18,3.06]
[1752964937038,8.7126,176.19,176.18,3.06]
[1752964937635,3.04,176.19,176.18,3.06]
[1752964941439,8.7126,176.19,176.18,3.06]
[1752964941637,3.04,176.19,176.16,3.27]
[1752964941840,1.91785714,176.19,176.16,3.27]
[1752964942148,3.31,176.16,176.15,3.27]
[1752964944842,3.31,176.16,176.15,8.9439]
[1752964945043,3.31,176.17,176.15,5.6739]
[1752964945244,3.31,176.17,176.16,3.27]
[1752964946149,8.9832,176.17,176.16,3.27]
[1752964946745,8.9832,176.17,176.13,5.6742]
[1752964946951,3.31,176.16,176.15,3.27]
[1752964951351,3.31,176.17,176.15,3.27]
[1752964951652,3.31,176.16,176.15,3.27]
[1752964955956,8.9835,176.16,176.15,3.27]
[1752964956157,3.31,176.15,176.14,3.27]
[1752964959461,3.31,176.16,176.14,3.27]
[1752964959952,5.6729,176.18,176.14,3.27]
[1752964960158,3.31,176.17,176.14,3.27]
[1752964961864,3.31,176.18,176.14,3.27]
[1752964962364,3.31,176.18,176.14,8.9441]
[1752964962568,3.31,176.18,176.15,3.27]
[1752964963064,3.31,176.17,176.15,3.27]
[1752964966869,3.31,176.16,176.15,3.27]
[1752964967966,3.31,176.16,176.13,3.27]
[1752964968462,3.31,176.16,176.14,3.27]
[1752964968769,1.91785714,176.18,176.13,3.27]
[1752964968964,3.31,176.15,176.13,3.27]
[1752964969660,4.5350788,176.18,176.14,4.4950788]
[1752964969865,3.31,176.17,176.15,3.27]
[1752964970060,8.9832,176.17,176.15,3.27]
[1752964970472,3.27,176.16,176.15,3.27]
[1752964971870,3.27,176.19,176.15,3.27]
[1752964972260,3.27,176.18,176.15,3.27]
[1752964973668,1.91391871,176.22,176.15,3.27]
[1752964973869,3.27,176.16,176.15,3.27]
[1752964977468,8.9435,176.16,176.15,3.27]
[1752964981073,3.27,176.16,176.15,3.27]
[1752964981981,8.943,176.18,176.15,3.27]
[1752964982474,3.27,176.17,176.15,3.27]
[1752964984881,3.27,176.17,176.16,3.04]
[1752964985281,3.27,176.18,176.16,3.04]
[1752964985478,3.27,176.17,176.16,3.04]
[1752964993685,8.9432,176.17,176.16,3.04]
[1752964996993,3.27,176.17,176.16,3.04]
[1752964997996,3.27,176.17,176.16,106.24]
[1752964998397,3.27,176.17,176.16,3.04]
[1752964998693,3.27,176.17,176.16,106.24]
[1752965005396,3.27,176.17,176.16,3.04]
[1752965005591,3.23,176.19,176.17,3.22]
[1752965005793,1.2247542,176.22,176.19,3.22]
[1752965005794,3.23,176.21,176.19,3.22]
[1752965005998,3.23,176.21,176.2,106.42]
[1752965006298,5.65467874,176.21,176.2,106.42]
[1752965006898,11.32657874,176.21,176.2,106.42]
[1752965007794,3.23,176.21,176.2,106.42]
[1752965007994,3.23,176.21,176.2,107.6447542]
[1752965015502,5.6717,176.22,176.2,107.6447542]
[1752965015704,3.23,176.22,176.21,3.22]
[1752965016504,3.23,176.22,176.21,8.8919]
[1752965016707,3.23,176.23,176.22,3.22]
[1752965016901,3.23,176.24,176.22,107.6247542]
[1752965017107,3.23,176.25,176.23,3.22]
[1752965017307,3.23,176.28,176.25,3.22]
[1752965017605,3.23,176.28,176.27,5.67]
[1752965017809,3.23,176.29,176.27,3.22]
[1752965018707,3.23,176.29,176.28,3.22]
[1752965019202,8.8993,176.29,176.28,3.22]
[1752965019408,3.23,176.29,176.28,3.22]
[1752965019710,3.23,176.29,176.28,4.4447542]
[1752965019910,3.23,176.3,176.29,3.22]
[1752965020110,3.23,176.31,176.3,3.22]
[1752965020312,5.6683,176.33,176.3,1.2247542]
[1752965020604,3.23,176.32,176.31,3.22]
[1752965021207,3.23,176.33,176.31,3.22]
[1752965021411,3.23,176.33,176.32,106.38]
[1752965022210,3.23,176.33,176.3,6.8935542]
[1752965022211,3.23,176.34,176.33,3.22]
[1752965022909,8.8977,176.34,176.33,3.22]
[1752965024615,3.23,176.32,176.31,3.22]
[1752965030121,3.23,176.32,176.31,8.8887]
[1752965031121,3.28,176.33,176.31,5.6687]
[1752965031320,3.28,176.33,176.32,3.33]
[1752965037828,3.28,176.33,176.32,8.9984]
[1752965038025,3.28,176.33,176.32,3.33]
[1752965040126,3.28,176.33,176.32,8.9984]
[1752965042325,3.28,176.33,176.32,3.33]
[1752965042624,3.28,176.33,176.3,3.33]
[1752965042625,5.6681,176.33,176.3,3.33]
[1752965042839,3.28,176.32,176.29,112.1591]
[1752965043129,3.28,176.32,176.3,3.33]
[1752965043326,1.22274132,176.31,176.19,3.33]
[1752965043530,3.28,176.28,176.26,3.33]
[1752965043732,3.28,176.28,176.26,106.43]
[1752965044529,3.28,176.28,176.27,3.33]
[1752965045427,3.28,176.3,176.28,3.33]
[1752965045827,1.22274132,176.32,176.28,3.33]
[1752965046032,8.949,176.31,176.27,6.89264132]
[1752965046330,3.28,176.31,176.29,3.33]
[1752965046926,1.22274132,176.3,176.28,3.33]
[1752965047127,3.28,176.29,176.27,3.33]
[1752965047432,3.28,176.29,176.26,106.43]
[1752965047725,5.6699,176.28,176.26,106.43]
[1752965047929,3.28,176.27,176.26,106.43]
[1752965048830,3.28,176.27,176.26,112.1003]
[1752965049427,8.95,176.27,176.26,106.43]
[1752965050023,3.28,176.27,176.26,106.43]
[1752965051133,8.95,176.27,176.26,106.43]
[1752965051832,3.28,176.27,176.26,106.43]
[1752965053031,8.9498,176.28,176.26,103.1]
[1752965053234,8.9498,176.28,176.27,3.33]
[1752965055731,3.28,176.29,176.27,3.33]
[1752965055935,11.3344,176.36,176.29,3.33]
[1752965055936,3.28,176.3,176.29,3.33]
[1752965056730,8.949,176.3,176.29,3.33]
[1752965059337,3.28,176.29,176.27,3.33]
[1752965060243,8.7399,176.28,176.27,3.33]
[1752965061335,3.07,176.28,176.27,3.33]
[1752965062342,3.07,176.29,176.28,3.29]
[1752965062543,5.6691,176.3,176.28,4.51274132]
[1752965062736,8.7391,176.3,176.29,3.29]
[1752965064045,3.07,176.3,176.29,3.29]
[1752965069853,8.739,176.3,176.29,3.29]
[1752965071753,5.6695,176.29,176.28,3.29]
[1752965072058,8.7395,176.29,176.28,3.29]
[1752965078060,3.07,176.29,176.28,3.29]
[1752965085363,3.07,176.29,176.28,8.9597]
[1752965086060,1.22274132,176.31,176.28,8.9597]
[1752965086061,6.89154132,176.31,176.28,8.9597]
[1752965086260,3.07,176.3,176.29,3.29]
[1752965086764,3.07,176.3,176.29,8.9593]
[1752965093972,3.21,176.31,176.29,8.9593]
[1752965094167,3.21,176.31,176.3,106.26]
[1752965101476,3.21,176.31,176.3,111.929]
[1752965102372,6.36162789,176.35,176.33,3.18]
[1752965102577,2.42247103,176.34,176.33,3.18]
[1752965102774,2.42247103,176.34,176.32,103.08]
[1752965102974,9.31331235,176.33,176.32,103.08]
[1752965103168,12.52331235,176.33,176.32,103.08]
[1752965104075,12.52331235,176.33,176.31,3.18]
[1752965104279,3.21,176.32,176.31,3.18]
[1752965104982,3.21,176.32,176.31,8.8487]
[1752965105275,3.21,176.32,176.31,3.18]
[1752965105577,8.8784,176.32,176.31,3.18]
[1752965105771,3.21,176.32,176.31,3.18]
[1752965107975,3.21,176.32,176.31,8.8487]
[1752965110280,3.21,176.32,176.31,3.18]
[1752965115391,3.21,176.32,176.31,8.8487]
[1752965115581,3.21,176.31,176.23,3.18]
[1752965115787,3.21,176.29,176.26,3.18]
[1752965116086,3.21,176.29,176.27,8.8498]
[1752965117389,4.43274132,176.29,176.27,8.8498]
[1752965117583,3.21,176.28,176.27,8.8498]
[1752965120893,3.21,176.28,176.27,111.9098]
[1752965129494,3.21,176.28,176.27,106.24]
[1752965129793,10.10244132,176.28,176.27,103.06]
[1752965130993,10.10244132,176.28,176.27,106.15]
[1752965131691,4.43274132,176.28,176.27,106.15]
[1752965132191,4.43274132,176.28,176.27,111.82]
[1752965132390,3.21,176.28,176.27,106.15]
[1752965132593,4.43274132,176.28,176.27,106.15]
[1752965135699,10.10244132,176.28,176.27,106.15]
[1752965139002,3.21,176.28,176.27,106.15]
[1752965140305,8.8797,176.28,176.27,106.15]
[1752965142906,6.89224132,176.29,176.27,108.73]
[1752965143106,9.90224132,176.29,176.28,3.09]
[1752965146909,8.6797,176.28,176.27,106.15]
[1752965147111,8.6797,176.28,176.27,103.06]
[1752965148507,5.67,176.27,176.26,3.09]
[1752965148702,3.01,176.26,176.22,3.09]
[1752965148901,3.01,176.24,176.23,106.15]
[1752965149106,3.01,176.24,176.23,103.06]
[1752965149107,8.6812,176.24,176.23,103.06]
[1752965149409,3.01,176.24,176.21,3.09]
[1752965149601,8.6821,176.21,176.2,103.06]
[1752965149806,8.6821,176.21,176.2,106.15]
[1752965150712,3.01,176.21,176.2,106.15]
[1752965151309,3.01,176.21,176.2,3.09]
[1752965151511,3.01,176.21,176.2,106.15]
[1752965151810,8.6819,176.21,176.2,3.09]
[1752965152009,8.6819,176.21,176.2,106.15]
[1752965152506,8.6819,176.21,176.2,3.09]
[1752965152708,8.6819,176.21,176.2,103.06]
[1752965153010,8.7026,176.19,176.18,106.31]
[1752965153211,9.92534132,176.19,176.18,103.06]
[1752965153906,9.92534132,176.19,176.18,106.31]
[1752965154204,9.92534132,176.19,176.18,3.25]
[1752965155008,9.92534132,176.19,176.18,106.31]
[1752965155401,8.7026,176.19,176.18,106.31]
[1752965155610,4.25274132,176.2,176.18,106.31]
[1752965155808,4.25274132,176.2,176.19,3.25]
[1752965157805,4.25274132,176.2,176.19,106.31]
[1752965159317,9.92494132,176.2,176.19,106.31]
[1752965160217,9.92494132,176.2,176.19,103.06]
[1752965160716,5.6731,176.18,176.17,103.06]
[1752965160907,9.92584132,176.18,176.17,103.06]
[1752965162118,9.92584132,176.18,176.17,106.31]
[1752965162621,4.25274132,176.18,176.17,106.31]
[1752965162817,1.22274132,176.19,176.18,3.25]
[1752965163022,4.25274132,176.2,176.18,3.25]
[1752965163321,3.03,176.19,176.18,3.25]
[1752965165023,8.7026,176.19,176.18,3.25]
[1752965166519,3.03,176.19,176.18,3.25]
[1752965166725,3.03,176.19,176.18,8.9229]
[1752965167018,3.03,176.19,176.18,3.25]
[1752965169125,8.7026,176.19,176.18,3.25]
[1752965169829,3.03,176.19,176.18,3.25]
[1752965172721,8.7026,176.19,176.18,3.25]
[1752965173425,5.6729,176.18,176.17,103.06]
[1752965173627,9.92564132,176.18,176.17,106.31]
[1752965175625,4.25274132,176.18,176.17,106.31]
[1752965176021,1.22274132,176.18,176.17,111.9832]
[1752965176429,4.25274132,176.19,176.18,3.25]
[1752965176630,4.25274132,176.19,176.18,106.33]
[1752965181134,9.92534132,176.19,176.18,106.33]
[1752965187043,3.28,176.21,176.18,108.7529]
[1752965187245,1.22274132,176.2,176.19,3.08]
[1752965189440,4.50274132,176.2,176.19,3.08]
[1752965191348,10.17494132,176.2,176.19,3.08]
[1752965195145,5.6726,176.19,176.18,103.08]
[1752965195449,3.28,176.18,176.17,103.06]
[1752965195647,3.28,176.18,176.15,214.30084815]
[1752965195648,3.28,176.17,176.15,103.06]
[1752965195948,4.50274132,176.16,176.15,103.06]
[1752965196149,10.17624132,176.16,176.15,103.06]
[1752965196349,12.59638711,176.16,176.15,103.06]
[1752965196548,3.64288711,176.16,176.14,3.08]
[1752965196748,3.64288711,176.16,176.14,106.14]
[1752965196749,8.9538,176.15,176.14,106.14]
[1752965197051,11.37412576,176.15,176.14,103.06]
[1752965197253,8.9538,176.15,176.14,103.06]
[1752965197545,11.37412722,176.15,176.14,103.06]
[1752965198346,8.9538,176.15,176.14,103.06]
[1752965198552,8.9538,176.15,176.14,106.14]
[1752965199754,1.22274132,176.16,176.15,3.08]
[1752965199949,1.22274132,176.17,176.15,3.08]
[1752965200148,1.22274132,176.17,176.16,106.14]
[1752965200561,4.50274132,176.17,176.16,106.14]
[1752965200960,10.17594132,176.17,176.16,106.14]
[1752965201562,4.50274132,176.17,176.16,106.14]
[1752965201764,1.22274132,176.17,176.16,111.8135]
[1752965201964,4.50274132,176.19,176.17,3.08]
[1752965202165,1.22274132,176.19,176.17,3.08]
[1752965202761,1.22274132,176.19,176.17,8.753]
[1752965202959,1.22274132,176.19,176.17,5.673]
[1752965203261,4.50274132,176.19,176.18,3.08]
[1752965203465,10.17534132,176.19,176.18,3.08]
[1752965207074,4.50274132,176.19,176.18,3.08]
[1752965207258,1.22274132,176.19,176.18,3.08]
[1752965208168,1.22274132,176.19,176.18,8.7529]
[1752965208762,6.92061391,176.19,176.09,3.08]
[1752965208968,17.02,176.32,176.09,3.08]
[1752965208969,3.28,176.13,176.1,103.06]
[1752965209162,4.50274132,176.12,176.11,3.08]
[1752965209572,10.17754132,176.12,176.11,3.08]
[1752965210169,4.50274132,176.12,176.11,3.08]
[1752965210976,3.28,176.12,176.11,3.08]
[1752965214070,8.9548,176.12,176.11,3.08]
[1752965215772,3.28,176.12,176.11,3.08]
[1752965219874,8.9548,176.12,176.11,3.08]
[1752965220576,8.9548,176.12,176.1,103.06]
[1752965220776,3.34,176.11,176.1,106.25]
[1752965221776,9.0151,176.11,176.1,106.25]
[1752965222272,9.0151,176.11,176.1,3.19]
[1752965222578,10.93026713,176.11,176.1,106.25]
[1752965223077,5.25516713,176.11,176.1,106.25]
[1752965223878,5.25516713,176.11,176.1,3.19]
[1752965224180,5.25516713,176.11,176.1,106.25]
[1752965224374,3.34,176.11,176.1,111.9255]
[1752965224774,3.34,176.11,176.1,106.25]
[1752965224974,3.34,176.11,176.1,111.9255]
[1752965225677,3.34,176.11,176.1,106.25]
[1752965227377,3.34,176.11,176.1,111.9255]
[1752965228681,3.34,176.11,176.1,106.25]
[1752965231084,4.56588787,176.11,176.1,106.25]
[1752965231783,10.24098787,176.11,176.1,3.19]
[1752965231984,10.24098787,176.11,176.1,106.25]
[1752965232486,10.24098787,176.11,176.1,3.19]
[1752965232679,3.34,176.09,176.08,3.19]
[1752965232879,4.56588787,176.09,176.08,103.06]
[1752965233374,4.56588787,176.09,176.08,106.25]
[1752965233779,1.22588787,176.09,176.08,106.25]
[1752965234581,3.34,176.1,176.08,108.7361]
[1752965234890,1.22588787,176.11,176.09,3.19]
[1752965235084,1.22588787,176.11,176.1,106.25]
[1752965235784,4.56588787,176.11,176.1,106.25]
[1752965236387,1.22588787,176.12,176.11,8.865]
[1752965236685,1.22588787,176.12,176.11,3.19]
[1752965237081,3.34,176.12,176.11,3.19]
[1752965244295,9.0148,176.12,176.11,3.19]
[1752965244495,3.14,176.11,176.1,106.3]
[1752965246094,3.14,176.11,176.09,3.24]
[1752965246296,3.14,176.11,176.1,103.06]
[1752965246495,8.8151,176.11,176.1,103.06]
[1752965247193,8.8151,176.11,176.1,106.3]
[1752965247384,8.8151,176.11,176.1,3.24]
[1752965247589,8.8151,176.11,176.1,106.3]
[1752965252391,8.8151,176.11,176.1,3.24]
[1752965252695,8.8151,176.11,176.1,106.3]
[1752965253296,11.23602051,176.11,176.1,106.3]
[1752965253902,3.14,176.12,176.1,103.06]
[1752965254193,3.14,176.13,176.11,3.24]
[1752965254386,3.14,176.13,176.11,8.915]
[1752965254587,3.14,176.13,176.12,3.24]
[1752965254787,3.587e-05,176.13,176.12,8.9148]
[1752965254993,3.14,176.2,176.13,3.24]
[1752965255191,3.14,176.2,176.15,3.24]
[1752965255394,3.14,176.2,176.18,5.6729]
[1752965255593,3.14,176.2,176.19,3.24]
[1752965257092,3.14,176.2,176.19,106.34]
[1752965257299,3.14,176.21,176.19,112.0126]
[1752965257496,3.14,176.21,176.2,3.24]
[1752965261701,3.14,176.22,176.2,8.9122]
[1752965261901,3.14,176.22,176.21,3.24]
[1752965262303,8.8116,176.22,176.21,3.24]
[1752965263902,5.6713,176.23,176.21,3.24]
[1752965264106,8.8113,176.23,176.21,3.24]
[1752965264298,8.8113,176.23,176.22,106.42]
[1752965265403,8.8113,176.23,176.22,103.18]
[1752965265798,10.72621202,176.23,176.22,103.18]
[1752965266998,8.8113,176.23,176.22,103.18]
[1752965267698,8.8113,176.23,176.22,106.42]
[1752965275017,10.03546319,176.23,176.22,106.42]
[1752965278212,3.24,176.22,176.1,3.15]
[1752965278414,3.24,176.17,176.15,3.15]
[1752965278611,3.24,176.17,176.16,106.29]
[1752965279009,3.24,176.18,176.16,108.8134]
[1752965279211,3.24,176.18,176.17,3.15]
[1752965280718,8.9128,176.19,176.17,3.15]
[1752965280914,8.9128,176.19,176.17,5.6732]
[1752965281115,3.24,176.19,176.18,3.15]
[1752965281716,1.91369659,176.2,176.16,106.29]
[1752965281920,3.24,176.18,176.16,106.29]
[1752965282122,3.24,176.18,176.16,103.14]
[1752965282321,8.9129,176.18,176.17,3.15]
[1752965282921,8.9132,176.17,176.16,103.14]
[1752965283420,3.24,176.17,176.14,3.15]
[1752965283820,3.24,176.15,176.14,3.15]
[1752965284917,3.24,176.15,176.14,8.8242]
[1752965285319,3.24,176.16,176.14,5.6742]
[1752965285519,3.24,176.16,176.15,3.15]
[1752965286025,7.58669659,176.18,176.15,3.15]
[1752965286321,5.15369659,176.18,176.16,3.15]
[1752965286923,3.24,176.17,176.16,3.15]
[1752965287924,8.9132,176.17,176.16,3.15]
[1752965288125,3.24,176.17,176.15,3.15]
[1752965288325,3.24,176.17,176.16,3.15]
[1752965289728,8.9132,176.17,176.16,3.15]